bitfinex/quotes_BTCUSD_20250123
["timestamp","ask_amount","ask_price","bid_price","bid_amount"]
[1737661764609,0.95239152,104310.0,104190.0,0.02]
[1737661764610,0.53737017,104240.0,104190.0,0.02]
[1737661764812,0.109,104290.0,104220.0,0.02]
[1737661764813,0.04795792,104280.0,104220.0,0.02]
[1737661765012,0.04795792,104280.0,104220.0,0.49975]
[1737661765013,0.09734729,104240.0,104220.0,0.49975]
[1737661765161,0.09734729,104230.0,104220.0,0.49975]
[1737661765755,0.19328829,104230.0,104220.0,0.4985938]
[1737661765949,0.19328829,104230.0,104130.0,0.0807824]
[1737661765950,0.02,104200.0,104130.0,0.0807824]
[1737661766155,0.28930529,104190.0,104140.0,0.14734729]
[1737661766356,0.287997,104170.0,104140.0,0.48012]
[1737661766509,0.09734729,104160.0,104140.0,0.48012]
[1737661767437,0.09734729,104150.0,104140.0,0.48012]
[1737661767641,0.288007,104170.0,104140.0,0.48012]
[1737661767845,0.09734729,104160.0,104140.0,0.48012]
[1737661768045,0.023,104140.0,104110.0,0.0015]
[1737661768248,0.21639029,104120.0,104110.0,0.0015]
[1737661768491,0.36639029,104120.0,104110.0,0.0015]
[1737661768697,0.34339029,104120.0,104110.0,0.0015]
[1737661769329,0.19339029,104120.0,104110.0,0.0015]
[1737661769553,0.19388478,104120.0,104110.0,0.0015]
[1737661769758,0.00049449,104120.0,104110.0,0.0015]
[1737661770171,0.09784178,104120.0,104110.0,0.0035086]
[1737661770447,0.00049449,104120.0,104110.0,0.0035086]
[1737661770687,0.00049449,104120.0,104110.0,0.0535086]
[1737661770883,0.09784178,104120.0,104110.0,0.0035086]
[1737661771084,0.00049449,104120.0,104110.0,0.0035086]
[1737661771557,0.00049449,104120.0,104110.0,0.0535086]
[1737661771786,0.096061,104100.0,104090.0,0.1381014]
[1737661771989,0.43889746,104100.0,104090.0,0.1381014]
[1737661772601,0.46189746,104100.0,104090.0,0.1381014]
[1737661772805,0.43889746,104100.0,104090.0,0.1381014]
[1737661773227,0.09607,104090.0,104080.0,0.13351224]
[1737661773438,0.51156817,104080.0,104070.0,0.1569845]
[1737661773658,0.58891546,104080.0,104070.0,0.1569845]
[1737661773880,0.43891546,104080.0,104070.0,0.1569845]
[1737661774095,0.43891546,104080.0,104070.0,0.144788]
[1737661774331,0.58891546,104080.0,104070.0,0.144788]
[1737661774545,0.43891546,104080.0,104070.0,0.144788]
[1737661774718,0.43940964,104080.0,104070.0,0.144788]
[1737661775367,0.34160517,104040.0,104030.0,0.00030001]
[1737661775588,0.19346329,104040.0,104030.0,0.00030001]
[1737661775799,0.38443,104050.0,104030.0,0.00030001]
[1737661775800,0.096108,104050.0,104030.0,0.00030001]
[1737661776017,0.43895246,104040.0,104030.0,0.00658998]
[1737661776424,0.43895246,104040.0,104030.0,0.00030001]
[1737661776775,0.43944634,104040.0,104030.0,0.00030001]
[1737661777011,0.00049388,104040.0,104030.0,0.00030001]
[1737661777217,0.34333034,104040.0,104010.0,0.01641449]
[1737661777418,0.58897146,104020.0,104010.0,0.01641449]
[1737661777617,0.43897146,104020.0,104010.0,0.01641449]
[1737661777847,0.096144,104010.0,104000.0,0.06917691]
[1737661778186,0.34349129,104010.0,104000.0,0.06917691]
[1737661778576,0.19349129,104010.0,104000.0,0.06923691]
[1737661778984,0.09734729,104010.0,104000.0,0.06923691]
[1737661779168,0.24548917,104020.0,104000.0,0.06923691]
[1737661779169,0.53389817,104020.0,104000.0,0.06923691]
[1737661779385,0.63124546,104020.0,104000.0,0.06923691]
[1737661779731,0.00049388,104040.0,104010.0,0.15]
[1737661779935,0.00049388,104040.0,104020.0,0.02]
[1737661780186,0.00049388,104040.0,104020.0,0.09734729]
[1737661780393,0.00049388,104040.0,104030.0,0.05]
[1737661780565,0.00049388,104040.0,104010.0,0.15]
[1737661780768,0.00049388,104040.0,104030.0,0.05]
[1737661780972,0.00049388,104040.0,104030.0,0.09734729]
[1737661781151,0.36420754,104090.0,104050.0,0.05]
[1737661781348,0.418832,104090.0,104060.0,0.05]
[1737661781883,0.418832,104090.0,104060.0,0.1301]
[1737661782096,0.418832,104090.0,104060.0,0.0801]
[1737661782355,0.418832,104090.0,104070.0,0.05]
[1737661782637,0.514903,104090.0,104070.0,0.05]
[1737661782778,0.17334283,104090.0,104070.0,0.05]
[1737661782984,0.09734729,104080.0,104060.0,0.1301]
[1737661783211,0.09734729,104080.0,104020.0,0.05]
[1737661783212,0.192226,104050.0,104020.0,0.1262]
[1737661783419,0.119126,104030.0,104020.0,0.0801]
[1737661783630,0.119126,104030.0,104020.0,0.00049388]
[1737661783631,0.21647329,104030.0,104020.0,0.00049388]
[1737661784057,0.23647329,104030.0,104020.0,0.00049388]
[1737661784263,0.21647329,104030.0,104020.0,0.00049388]
[1737661784681,0.09734729,104030.0,104020.0,0.00049388]
[1737661784892,0.19347329,104030.0,104020.0,0.00049388]
[1737661785585,0.21647329,104030.0,104020.0,0.00049388]
[1737661786250,0.096144,104010.0,104000.0,0.04316933]
[1737661786421,0.12034729,104010.0,104000.0,0.04316933]
[1737661786648,0.09734729,104010.0,104000.0,0.09316933]
[1737661786799,0.09734729,104010.0,104000.0,0.04316933]
[1737661787061,0.19349129,104010.0,104000.0,0.04316933]
[1737661787264,0.21649129,104010.0,104000.0,0.04316933]
[1737661787559,0.00049388,104030.0,104000.0,0.09316933]
[1737661787768,0.38622117,104030.0,104000.0,0.09316933]
[1737661787980,0.38576029,104020.0,104000.0,0.09316933]
[1737661788186,0.28961929,104020.0,104000.0,0.09316933]
[1737661788389,0.19349129,104010.0,104000.0,0.04316933]
[1737661788609,0.21649129,104010.0,104000.0,0.04316933]
[1737661788963,0.38649129,104010.0,104000.0,0.04316933]
[1737661789169,0.288555,103970.0,103950.0,0.01434715]
[1737661789365,0.096166,103990.0,103960.0,0.05]
[1737661789565,0.09734729,103980.0,103960.0,0.05]
[1737661789866,0.19352429,103980.0,103950.0,0.06434715]
[1737661790053,0.38587029,103980.0,103950.0,0.06434715]
[1737661790258,0.19352429,103980.0,103960.0,0.06414715]
[1737661790472,0.119181,103970.0,103960.0,0.01414715]
[1737661790700,0.21652829,103970.0,103960.0,0.01414715]
[1737661790898,0.00049358,103980.0,103960.0,0.06414715]
[1737661791098,0.02349358,103980.0,103960.0,0.06414715]
[1737661791302,0.00049358,103980.0,103960.0,0.06414715]
[1737661791773,0.00049358,103980.0,103970.0,0.05]
[1737661791981,0.00049358,103980.0,103960.0,0.11149444]
[1737661792191,0.00049358,103980.0,103960.0,0.14464729]
[1737661792671,0.00049358,103980.0,103970.0,0.14734729]
[1737661792835,0.00049358,103980.0,103970.0,0.63853646]
[1737661793003,0.07604992,104020.0,104000.0,0.05]
[1737661793206,0.17339721,104020.0,104000.0,0.05014843]
[1737661793611,0.19348229,104020.0,104000.0,0.05014843]
[1737661793997,0.192246,104040.0,104000.0,0.53086843]
[1737661794203,0.096137,104020.0,104000.0,0.48086843]
[1737661794405,0.023,104010.0,104000.0,0.48086843]
[1737661795020,0.21679033,104010.0,104000.0,0.48086843]
[1737661796691,0.21679033,104010.0,104000.0,0.47716843]
[1737661797365,0.36679033,104010.0,104000.0,0.47716843]
[1737661797703,0.21679033,104010.0,104000.0,0.47716843]
[1737661797910,0.4622795,104010.0,104000.0,0.47716843]
[1737661798101,0.6122795,104010.0,104000.0,0.47716843]
[1737661799388,0.21679033,104010.0,104000.0,0.47716843]
[1737661799822,0.19379033,104010.0,104000.0,0.47716843]
[1737661800178,0.4392795,104010.0,104000.0,0.47716843]
[1737661800382,0.4622795,104010.0,104000.0,0.47716843]
[1737661800729,0.21679033,104010.0,104000.0,0.47716843]
[1737661800931,0.24679033,104010.0,104000.0,0.47716843]
[1737661802523,0.03029904,104010.0,104000.0,0.47716843]
[1737661802692,0.07415904,104010.0,104000.0,0.47716843]
[1737661802922,0.07415904,104010.0,104000.0,0.52716843]
[1737661803125,0.07415904,104010.0,104000.0,0.62451572]
[1737661803332,0.07415904,104010.0,104000.0,0.66951572]
[1737661803541,0.07415904,104010.0,104000.0,0.75141572]
[1737661803992,0.4831395,104010.0,104000.0,0.41947543]
[1737661804197,0.7187198,104010.0,104000.0,0.20398493]
[1737661804413,0.096181,103970.0,103960.0,0.0051424]
[1737661804847,0.288532,103980.0,103960.0,0.0051424]
[1737661805024,0.43901746,103970.0,103960.0,0.0051424]
[1737661805248,0.19352829,103970.0,103960.0,0.0051424]
[1737661805457,0.384712,103980.0,103960.0,0.0051424]
[1737661805650,0.38587729,103980.0,103960.0,0.0051424]
[1737661805832,0.00014794,103980.0,103960.0,0.0551424]
[1737661806036,0.00014794,103980.0,103970.0,0.05]
[1737661806285,0.00014794,103980.0,103970.0,0.22614729]
[1737661806414,0.00014794,103980.0,103970.0,0.24614729]
[1737661806817,0.00014794,103980.0,103970.0,0.19614729]
[1737661807027,0.00014794,103980.0,103970.0,0.29584729]
[1737661807224,0.04415904,104010.0,104000.0,0.05]
[1737661807409,0.04415904,104010.0,104000.0,0.14734729]
[1737661807610,0.04415904,104010.0,104000.0,0.22614729]
[1737661808442,0.04415904,104010.0,104000.0,0.23433377]
[1737661809949,0.04415904,104010.0,104000.0,0.28103377]
[1737661810182,0.384411,104060.0,104010.0,0.02]
[1737661810418,0.49670362,104070.0,104030.0,0.03818648]
[1737661810648,0.69013891,104070.0,104040.0,0.03818648]
[1737661810875,0.03,104050.0,104040.0,0.48058]
[1737661811103,0.03,104050.0,104040.0,0.51876648]
[1737661811716,0.61894346,104050.0,104040.0,0.48058]
[1737661812175,0.22345429,104050.0,104040.0,0.48058]
[1737661812381,0.46894346,104050.0,104040.0,0.48058]
[1737661812589,0.64209299,104050.0,104040.0,0.48058]
[1737661813027,0.64209299,104050.0,104040.0,0.47422116]
[1737661813373,0.096155,104000.0,103980.0,0.03818648]
[1737661813569,0.57811629,104000.0,103970.0,0.129]
[1737661813772,0.72622817,104010.0,103970.0,0.22634729]
[1737661813927,0.096159,104000.0,103970.0,0.26453377]
[1737661814744,0.096142,104020.0,103990.0,0.03818648]
[1737661814996,0.09749674,104020.0,104000.0,0.03818648]
[1737661815163,0.00014945,104020.0,104000.0,0.03818648]
[1737661815615,0.00014945,104020.0,104010.0,0.03818648]
[1737661816662,0.00014945,104020.0,104010.0,0.13553377]
[1737661816992,0.00014945,104020.0,104010.0,0.15553377]
[1737661817611,0.00014945,104020.0,104010.0,0.23613377]
[1737661818261,0.00014945,104020.0,104010.0,0.27006067]
[1737661818460,0.00014945,104020.0,104010.0,0.24644729]
[1737661818662,0.00014945,104020.0,104010.0,0.28463377]
[1737661819742,0.00014945,104020.0,104010.0,0.22644729]
[1737661820150,0.00014945,104020.0,104010.0,0.26463377]
[1737661820358,0.00014945,104020.0,104010.0,0.70714729]
[1737661820534,0.00014945,104020.0,104010.0,0.70728959]
[1737661820738,0.00014945,104020.0,104010.0,0.8161908]
[1737661821013,0.00014945,104020.0,104010.0,0.74547607]
[1737661821230,0.00014945,104020.0,104010.0,0.4808423]
[1737661821231,0.46212091,104020.0,104010.0,0.4808423]
[1737661821430,0.47393443,104020.0,104010.0,0.4808423]
[1737661822280,0.62393443,104020.0,104010.0,0.4808423]
[1737661822516,0.66985091,104020.0,104010.0,0.02151853]
[1737661822701,0.66985091,104020.0,103960.0,0.0051424]
[1737661822702,0.346911,103970.0,103960.0,0.0051424]
[1737661822909,0.39940917,103960.0,103950.0,0.0002]
[1737661823123,0.51675646,103960.0,103950.0,0.0002]
[1737661823261,0.43902646,103960.0,103950.0,0.0002]
[1737661823467,0.58902646,103960.0,103950.0,0.0002]
[1737661823675,0.43902646,103960.0,103950.0,0.0002]
[1737661823886,0.45902646,103960.0,103950.0,0.0002]
[1737661824162,0.60902646,103960.0,103950.0,0.00069358]
[1737661824347,0.58902646,103960.0,103950.0,0.00069358]
[1737661824554,0.61202646,103960.0,103950.0,0.00069358]
[1737661824805,0.46202646,103960.0,103950.0,0.00069358]
[1737661825192,0.43902646,103960.0,103950.0,0.00069358]
[1737661826266,0.46202646,103960.0,103950.0,0.00069358]
[1737661828868,0.43902646,103960.0,103950.0,0.00069358]
[1737661829644,0.34283646,103960.0,103950.0,0.00069358]
[1737661829850,0.43902646,103960.0,103950.0,0.00069358]
[1737661830400,0.34283646,103960.0,103950.0,0.00069358]
[1737661830606,0.24548917,103980.0,103950.0,0.03888006]
[1737661830825,0.14498752,104000.0,103950.0,0.03888006]
[1737661830826,0.34164917,104000.0,103970.0,0.03818648]
[1737661831025,0.09734729,104000.0,103980.0,0.03818648]
[1737661831224,0.38584729,103990.0,103950.0,0.09052668]
[1737661831436,0.38584729,103990.0,103980.0,0.00635947]
[1737661831639,0.288556,103970.0,103950.0,0.09052668]
[1737661831848,0.09734729,103960.0,103950.0,0.09052668]
[1737661832062,0.43901746,103970.0,103950.0,0.09052668]
[1737661832243,0.192336,103990.0,103960.0,0.03818648]
[1737661832244,0.24548917,103990.0,103960.0,0.03818648]
[1737661832473,0.34283646,103990.0,103970.0,0.03818648]
[1737661832688,0.43900146,103990.0,103950.0,0.18787397]
[1737661832861,0.38551317,103990.0,103960.0,0.09734729]
[1737661833019,0.19352329,103980.0,103950.0,0.09066898]
[1737661833210,0.38587029,103980.0,103950.0,0.09066898]
[1737661833632,0.03,103970.0,103950.0,0.18801627]
[1737661834110,0.03,103970.0,103950.0,0.09066898]
[1737661834670,0.03,103970.0,103960.0,0.03818648]
[1737661835014,0.03,103970.0,103960.0,0.0044086]
[1737661835330,0.03,103970.0,103950.0,0.09066898]
[1737661835553,0.03,103970.0,103960.0,0.03818648]
[1737661835911,0.03,103970.0,103960.0,0.04259517]
[1737661836114,0.04386,103990.0,103960.0,0.13994246]
[1737661836327,0.04386,103990.0,103980.0,0.03818648]
[1737661836894,0.38669646,103990.0,103970.0,0.03818648]
[1737661837063,0.67519146,103990.0,103970.0,0.03818648]
[1737661837262,0.48286446,103990.0,103970.0,0.03818648]
[1737661837689,0.04386,103990.0,103970.0,0.03818648]
[1737661838996,0.04386,103990.0,103980.0,0.03818648]
[1737661839402,0.04386,103990.0,103980.0,0.18393377]
[1737661840211,0.04386,103990.0,103980.0,0.26093377]
[1737661840426,0.00152,104020.0,104010.0,0.03818648]
[1737661840988,0.00152,104020.0,103980.0,0.24314067]
[1737661841202,0.09734729,104010.0,103980.0,0.1254]
[1737661841400,0.24548917,104010.0,103980.0,0.22274729]
[1737661841598,0.097657,104020.0,103980.0,0.22274729]
[1737661841773,0.38742474,104020.0,103980.0,0.22274729]
[1737661842134,0.38742474,104020.0,103980.0,0.1254]
[1737661842135,0.096154,104000.0,103980.0,0.1254]
[1737661842782,0.82357946,104010.0,103980.0,0.1254]
[1737661842980,0.096155,104000.0,103980.0,0.1254]
[1737661843103,0.19350229,104000.0,103980.0,0.1254]
[1737661843310,0.28965629,104000.0,103980.0,0.1254]
[1737661843507,0.57813429,104000.0,103980.0,0.1254]
[1737661843718,0.38581729,104000.0,103980.0,0.1254]
[1737661844158,0.57813329,104000.0,103980.0,0.1254]
[1737661844621,0.192344,103980.0,103960.0,0.03818648]
[1737661844824,0.43901746,103970.0,103960.0,0.03818648]
[1737661845240,0.63138846,103970.0,103960.0,0.03832898]
[1737661845448,0.63138846,103970.0,103960.0,0.0001425]
[1737661845449,0.80438846,103970.0,103960.0,0.0001425]
[1737661845950,1.35800198,103970.0,103960.0,0.0001425]
[1737661846203,0.22079,104010.0,103960.0,0.00063608]
[1737661846204,0.58566,104010.0,103960.0,0.00063608]
[1737661846395,0.04386,104010.0,104000.0,0.13433948]
[1737661846691,0.04386,104010.0,104000.0,0.24512072]
[1737661846899,0.04386,104010.0,104000.0,0.25168677]
[1737661847110,0.04386,104010.0,104000.0,0.35598677]
[1737661847315,0.04386,104010.0,104000.0,0.37598677]
[1737661847525,0.04386,104010.0,104000.0,0.33780029]
[1737661847760,0.04386,104010.0,104000.0,0.4097668]
[1737661847967,0.04386,104010.0,104000.0,0.8905168]
[1737661848792,0.04386,104010.0,104000.0,0.85673677]
[1737661849029,0.14120729,104010.0,104000.0,0.48075]
[1737661849247,0.68765398,104010.0,104000.0,0.48075]
[1737661849528,0.096181,103970.0,103960.0,0.0001425]
[1737661849773,0.09734729,103970.0,103960.0,0.00063608]
[1737661850019,0.09734729,103970.0,103960.0,0.03882256]
[1737661850992,0.19352829,103970.0,103960.0,0.00063608]
[1737661851442,0.09734729,103970.0,103960.0,0.03882256]
[1737661852113,0.19352829,103970.0,103960.0,0.00063608]
[1737661852264,0.19352829,103970.0,103960.0,0.00019357]
[1737661853097,0.36652829,103970.0,103960.0,0.00019357]
[1737661853299,0.53467917,103960.0,103950.0,0.0095754]
[1737661853503,0.98082646,103960.0,103950.0,0.0095754]
[1737661853711,0.22353729,103960.0,103950.0,0.0095754]
[1737661855139,0.76304646,103960.0,103950.0,0.0095754]
[1737661855331,0.75485998,103960.0,103950.0,0.0095754]
[1737661858800,0.77485998,103960.0,103950.0,0.0095754]
[1737661859036,0.64202646,103960.0,103950.0,0.0095754]
[1737661859450,0.12734729,103960.0,103950.0,0.0095754]
[1737661859658,0.22353729,103960.0,103950.0,0.14396188]
[1737661859865,0.72102646,103960.0,103950.0,0.0095754]
[1737661860068,0.73283998,103960.0,103950.0,0.0095754]
[1737661860270,0.75583998,103960.0,103950.0,0.00928662]
[1737661860476,0.1192,103950.0,103940.0,0.00022834]
[1737661860684,0.21654729,103950.0,103940.0,0.00022834]
[1737661861091,0.38654729,103950.0,103940.0,0.00022834]
[1737661861477,0.21654729,103950.0,103940.0,0.00022834]
[1737661862691,0.19354729,103950.0,103940.0,0.00022834]
[1737661863248,0.09734729,103950.0,103940.0,0.09643734]
[1737661863626,0.37168217,103960.0,103950.0,0.0962]
[1737661863787,0.46903146,103960.0,103940.0,0.00022834]
[1737661863969,0.46903146,103960.0,103940.0,0.13461682]
[1737661863970,0.66141646,103960.0,103940.0,0.13461682]
[1737661864311,0.66141646,103960.0,103950.0,0.0962]
[1737661864312,0.37283646,103960.0,103950.0,0.0962]
[1737661864540,0.27548917,103960.0,103950.0,0.0962]
[1737661864798,0.27548917,103960.0,103950.0,0.13438648]
[1737661865053,0.27548917,103960.0,103950.0,0.14242045]
[1737661865401,0.03,103960.0,103950.0,0.14242045]
[1737661865980,0.46902646,103960.0,103950.0,0.00803397]
[1737661866181,0.46902646,103960.0,103940.0,0.07892834]
[1737661866378,0.46902646,103960.0,103940.0,0.11711482]
[1737661866586,0.46902946,103960.0,103940.0,0.11711482]
[1737661866798,0.03,103960.0,103950.0,0.03818648]
[1737661867210,0.03,103960.0,103950.0,0.04622728]
[1737661867834,0.03,103960.0,103950.0,0.14357457]
[1737661868039,0.00049815,103970.0,103960.0,0.03818648]
[1737661868241,0.00049815,103970.0,103960.0,0.13553377]
[1737661868452,0.00049815,103970.0,103960.0,0.14348709]
[1737661868867,0.00049815,103970.0,103960.0,0.3098358]
[1737661869079,0.00049815,103970.0,103960.0,0.4551358]
[1737661869286,0.00049815,103970.0,103960.0,0.1714398]
[1737661869492,0.00049815,103970.0,103960.0,0.13325332]
[1737661869907,0.00049815,103970.0,103960.0,0.1714398]
[1737661871190,0.00049815,103970.0,103960.0,0.26878709]
[1737661872214,0.00049815,103970.0,103960.0,0.13325332]
[1737661872419,0.00049815,103970.0,103960.0,0.00795332]
[1737661872619,0.00049815,103970.0,103940.0,0.08057084]
[1737661872842,0.00049815,103970.0,103950.0,0.00798418]
[1737661873093,0.09784544,103970.0,103950.0,0.00798418]
[1737661873265,0.09734729,103960.0,103950.0,0.00798418]
[1737661873594,0.00049815,103970.0,103950.0,0.04617066]
[1737661873797,0.00049815,103970.0,103960.0,0.03818648]
[1737661874001,0.00049815,103970.0,103960.0,0.04618611]
[1737661874417,0.09784544,103970.0,103960.0,0.00799963]
[1737661874625,0.09784544,103970.0,103940.0,0.08057084]
[1737661874828,0.00049815,103970.0,103950.0,0.03818648]
[1737661875002,0.00049815,103970.0,103950.0,0.04620254]
[1737661875420,0.03,103960.0,103950.0,0.10536335]
[1737661875658,0.03,103960.0,103950.0,0.15622717]
[1737661875800,0.00049815,103970.0,103960.0,0.03818648]
[1737661875998,0.00049815,103970.0,103960.0,0.143486]
[1737661876289,0.00049815,103970.0,103960.0,0.04613871]
[1737661876419,0.00049815,103970.0,103960.0,0.00795223]
[1737661876833,0.00049815,103970.0,103960.0,0.04613871]
[1737661877059,0.00049815,103970.0,103960.0,0.00795223]
[1737661877424,0.09784544,103970.0,103940.0,0.11875732]
[1737661877628,0.38593729,103960.0,103940.0,0.03855732]
[1737661877861,0.43903446,103960.0,103940.0,0.03855732]
[1737661878111,0.65441846,103960.0,103950.0,0.00799854]
[1737661878505,0.13101352,103950.0,103940.0,0.00037084]
[1737661878714,0.23654729,103950.0,103940.0,0.00037084]
[1737661878920,0.21654729,103950.0,103940.0,0.00037084]
[1737661879365,0.21654729,103950.0,103940.0,0.0084315]
[1737661879566,0.24836081,103950.0,103940.0,0.00037084]
[1737661879767,0.21654729,103950.0,103940.0,0.00037084]
[1737661880047,0.19354729,103950.0,103940.0,0.00037084]
[1737661880416,0.22354729,103950.0,103940.0,0.00840478]
[1737661880661,0.22354729,103950.0,103940.0,0.14280026]
[1737661880863,0.12734729,103950.0,103940.0,0.14280026]
[1737661881453,0.03,103950.0,103940.0,0.14280026]
[1737661881656,0.096193,103960.0,103940.0,0.00840478]
[1737661881863,0.09619,103960.0,103950.0,0.0962]
[1737661882066,0.63141346,103960.0,103940.0,0.10460678]
[1737661882264,0.09734729,103950.0,103940.0,0.09657284]
[1737661882469,0.09734729,103950.0,103940.0,0.13475932]
[1737661882758,0.09668115,103970.0,103950.0,0.03818648]
[1737661882968,0.09784544,103970.0,103950.0,0.03818648]
[1737661883158,0.00049815,103970.0,103950.0,0.03818648]
[1737661883356,0.0007974,103970.0,103960.0,0.03818648]
[1737661883579,0.0446574,103970.0,103960.0,0.13553377]
[1737661883781,0.0446574,103970.0,103960.0,0.40682715]
[1737661883782,4e-07,103970.0,103960.0,0.40682715]
[1737661884634,4e-07,103970.0,103960.0,0.11908648]
[1737661884833,4e-07,103970.0,103960.0,0.0809]
[1737661885034,4e-07,103970.0,103960.0,0.11908648]
[1737661885192,4e-07,103970.0,103960.0,0.21643377]
[1737661885578,4e-07,103970.0,103960.0,0.43643377]
[1737661885826,4e-07,103970.0,103960.0,0.41491715]
[1737661886166,4e-07,103970.0,103960.0,0.48491715]
[1737661886364,4e-07,103970.0,103960.0,0.0809]
[1737661886596,4e-07,103970.0,103960.0,0.21643377]
[1737661888250,4e-07,103970.0,103960.0,0.36643377]
[1737661888455,4e-07,103970.0,103960.0,0.80917729]
[1737661888654,4e-07,103970.0,103960.0,0.69736377]
[1737661890591,4e-07,103970.0,103960.0,0.48093]
[1737661890792,4e-07,103970.0,103960.0,0.51911648]
[1737661891518,4e-07,103970.0,103960.0,0.61646377]
[1737661891765,4e-07,103970.0,103960.0,0.68295015]
[1737661892031,4e-07,103970.0,103960.0,0.61646377]
[1737661892271,4e-07,103970.0,103960.0,0.91166377]
[1737661893751,4e-07,103970.0,103960.0,0.69166377]
[1737661894234,4e-07,103970.0,103960.0,0.66194357]
[1737661894476,4e-07,103970.0,103960.0,0.81194357]
[1737661894722,4e-07,103970.0,103960.0,0.83106179]
[1737661894945,4e-07,103970.0,103960.0,0.59431648]
[1737661895215,4e-07,103970.0,103960.0,0.69166377]
[1737661895930,4e-07,103970.0,103960.0,0.69180617]
[1737661896132,0.00029944,103970.0,103960.0,0.69180617]
[1737661896942,0.00029944,103970.0,103960.0,0.4810724]
[1737661897383,0.00029944,103970.0,103960.0,0.61660617]
[1737661897624,0.00029944,103970.0,103960.0,0.57841969]
[1737661897855,0.00029944,103970.0,103960.0,0.61660617]
[1737661898576,0.00029944,103970.0,103960.0,0.68810679]
[1737661899291,0.00029944,103970.0,103960.0,0.61660617]
[1737661900754,0.00029944,103970.0,103960.0,0.76660617]
[1737661900960,0.00029944,103970.0,103960.0,0.81660617]
[1737661901201,0.00029944,103970.0,103960.0,0.61660617]
[1737661902687,0.00029944,103970.0,103960.0,0.4810724]
[1737661902919,0.00029944,103970.0,103960.0,0.61660617]
[1737661903489,0.00029944,103970.0,103960.0,0.4810724]
[1737661903696,0.09764673,103970.0,103960.0,0.4810724]
[1737661903900,0.44704125,103970.0,103960.0,0.4810724]
[1737661904112,0.42455773,103970.0,103960.0,0.2925724]
[1737661904315,0.42455773,103970.0,103960.0,0.2596724]
[1737661904547,0.42455773,103970.0,103960.0,0.0001424]
[1737661904747,0.30393,103950.0,103940.0,0.00037084]
[1737661904962,0.12772635,103930.0,103920.0,0.0001427]
[1737661905156,0.49325764,103930.0,103920.0,0.0001427]
[1737661905564,0.47356281,103930.0,103920.0,0.0001427]
[1737661905778,0.48144412,103930.0,103920.0,0.0001427]
[1737661905991,0.49325764,103930.0,103920.0,0.0001427]
[1737661906192,0.46144412,103930.0,103920.0,0.00064085]
[1737661906392,0.21595495,103930.0,103920.0,0.00064085]
[1737661906807,0.19295495,103930.0,103920.0,0.00064085]
[1737661907432,0.21595495,103930.0,103920.0,0.00064085]
[1737661908014,0.19295495,103930.0,103920.0,0.00064085]
[1737661908226,0.45813895,103930.0,103920.0,0.00064085]
[1737661908450,0.48113895,103930.0,103920.0,0.00064085]
[1737661908657,0.46144412,103930.0,103920.0,0.00064085]
[1737661909078,0.48113895,103930.0,103920.0,0.00064085]
[1737661909281,0.49295247,103930.0,103920.0,0.00064085]
[1737661909481,0.48113895,103930.0,103920.0,0.00064085]
[1737661909702,0.49295247,103930.0,103920.0,0.00064085]
[1737661910272,0.48113895,103930.0,103920.0,0.00064085]
[1737661910508,0.49295247,103930.0,103920.0,0.00064085]
[1737661910706,0.43844412,103930.0,103920.0,0.00064085]
[1737661911261,0.46144412,103930.0,103920.0,0.00064085]
[1737661911463,0.43844412,103930.0,103920.0,0.09686785]
[1737661911643,0.09734729,103930.0,103920.0,0.09686785]
[1737661911846,0.53409917,103950.0,103930.0,0.096211]
[1737661912045,0.19355629,103940.0,103930.0,0.096211]
[1737661912445,0.09734729,103940.0,103930.0,0.096211]
[1737661912849,0.09734729,103940.0,103920.0,0.09717102]
[1737661913079,0.096218,103930.0,103920.0,0.09717102]
[1737661913407,0.19356529,103930.0,103920.0,0.09717102]
[1737661913695,0.09734729,103930.0,103920.0,0.09717102]
[1737661914209,0.19356529,103930.0,103920.0,0.09717102]
[1737661914358,0.09734729,103930.0,103920.0,0.09717102]
[1737661914762,0.09734729,103930.0,103920.0,0.09686585]
[1737661914975,0.44970869,103950.0,103920.0,0.00094602]
[1737661915204,0.09734729,103940.0,103930.0,0.096217]
[1737661915424,0.380909,103960.0,103950.0,0.0962]
[1737661915641,0.380909,103960.0,103940.0,0.00030517]
[1737661915642,0.38205829,103960.0,103940.0,0.00030517]
[1737661915852,0.28585829,103960.0,103950.0,0.0962]
[1737661916117,0.18966729,103960.0,103950.0,0.0962]
[1737661916338,0.09734729,103960.0,103950.0,0.0962]
[1737661916606,0.00029944,103970.0,103950.0,0.03849165]
[1737661916844,0.09764673,103970.0,103950.0,0.11499165]
[1737661917082,0.00029944,103970.0,103960.0,0.00030517]
[1737661917507,0.00029944,103970.0,103960.0,0.03849165]
[1737661918358,0.00029944,103970.0,103960.0,0.03863959]
[1737661919356,0.00029944,103970.0,103960.0,0.13598688]
[1737661920402,0.09764673,103970.0,103960.0,0.00014794]
[1737661920614,0.4393169,103970.0,103960.0,0.00014794]
[1737661920826,0.4623169,103970.0,103960.0,0.00014794]
[1737661921035,0.49293042,103970.0,103960.0,0.00014794]
[1737661921242,0.4811169,103970.0,103960.0,0.00014794]
[1737661921648,0.48201173,103970.0,103960.0,0.00014794]
[1737661922066,0.8161359,103970.0,103930.0,0.0001425]
[1737661922278,0.48174029,103940.0,103930.0,0.0001425]
[1737661923104,0.49355381,103940.0,103930.0,0.0001425]
[1737661923287,0.43904546,103940.0,103930.0,0.0001425]
[1737661925404,0.46904546,103940.0,103930.0,0.0963605]
[1737661925608,0.12734729,103940.0,103930.0,0.09666567]
[1737661926010,0.22355629,103940.0,103930.0,0.09666567]
[1737661926209,0.12734729,103940.0,103930.0,0.09666567]
[1737661926643,0.03,103940.0,103930.0,0.13485215]
[1737661927248,0.03,103940.0,103930.0,0.26275215]
[1737661927461,0.03,103940.0,103930.0,0.22456567]
[1737661927670,0.03,103940.0,103930.0,0.26275215]
[1737661929048,0.22355629,103940.0,103930.0,0.2242605]
[1737661930087,0.49204546,103940.0,103930.0,0.0001425]
[1737661930291,0.70560029,103940.0,103930.0,0.0001425]
[1737661930461,0.68590546,103940.0,103930.0,0.0001425]
[1737661930660,0.71741381,103940.0,103930.0,0.0001425]
[1737661930815,0.70560029,103940.0,103930.0,0.0001425]
[1737661931020,0.68590546,103940.0,103930.0,0.0001425]
[1737661931647,0.71741381,103940.0,103930.0,0.0001425]
[1737661933203,0.55515907,103940.0,103930.0,0.0001425]
[1737661933352,0.58666742,103940.0,103930.0,0.0001425]
[1737661933992,0.119218,103930.0,103920.0,0.0001427]
[1737661934268,0.75836529,103930.0,103920.0,0.0001427]
[1737661934676,0.77806012,103930.0,103920.0,0.0001427]
[1737661934829,0.22507364,103930.0,103920.0,0.0001427]
[1737661935033,0.20537881,103930.0,103920.0,0.0001427]
[1737661935240,0.20547457,103930.0,103920.0,0.0001427]